bitfinex-derivatives/quotes_ETHF0:USTF0_20250115
["timestamp","ask_amount","ask_price","bid_price","bid_amount"]
[1736983780431,0.4775,3442.3,3441.6,0.4478]
[1736983780627,0.4775,3442.3,3442.0,0.58101]
[1736983780928,1.05848,3442.3,3442.0,0.58101]
[1736983781129,0.581,3442.2,3441.9,0.58103]
[1736983781317,0.58101,3442.1,3441.8,0.58105]
[1736983781521,0.4775,3442.3,3441.7,40.8]
[1736983781723,0.58101,3442.1,3441.8,0.58105]
[1736983781928,0.581,3442.2,3441.8,0.58106]
[1736983782127,0.58101,3442.1,3441.8,0.58106]
[1736983782527,0.58104,3442.0,3441.7,40.8]
[1736983782730,0.58102,3442.1,3441.8,0.58105]
[1736983782927,0.58102,3442.1,3441.7,0.58106]
[1736983783233,0.58107,3441.8,3441.5,3.7889]
[1736983783430,0.58099,3442.2,3441.5,3.2078]
[1736983783628,0.58099,3442.2,3441.5,3.7889]
[1736983783932,0.58099,3442.2,3441.9,0.58102]
[1736983784119,0.58101,3442.1,3441.9,0.58102]
[1736983784324,0.581,3442.2,3441.9,0.58102]
[1736983784724,0.58101,3442.1,3441.8,0.58105]
[1736983784930,0.4775,3442.3,3441.5,5.46476731]
[1736983785829,0.581,3442.2,3441.9,0.58103]
[1736983786221,0.581,3442.2,3442.0,0.58102]
[1736983786424,0.581,3442.2,3441.9,0.58103]
[1736983786624,0.4775,3442.3,3441.6,0.4521]
[1736983786928,0.581,3442.2,3441.6,0.4521]
[1736983787435,0.4775,3442.3,3441.9,0.58103]
[1736983787436,0.58101,3442.1,3441.9,0.58103]
[1736983787732,0.4775,3442.3,3442.0,0.58101]
[1736983787924,0.58099,3442.2,3442.0,0.58101]
[1736983788124,0.4775,3442.3,3441.6,0.4521]
[1736983788323,0.4775,3442.3,3441.9,0.58103]
[1736983788525,0.58099,3442.2,3441.9,0.58103]
[1736983788723,0.58101,3442.1,3441.9,0.58103]
[1736983788933,3.6853,3442.3,3441.6,0.4521]
[1736983789133,0.58105,3441.9,3441.7,0.58106]
[1736983789325,0.58104,3441.9,3441.7,0.58106]
[1736983790938,3.6853,3442.3,3441.7,0.58106]
[1736983791238,0.58104,3441.9,3441.7,0.58106]
[1736983791438,0.58103,3442.0,3441.8,0.58106]
[1736983791934,0.58105,3441.9,3441.7,0.58106]
[1736983792239,3.6853,3442.3,3441.6,0.4521]
[1736983792532,3.6853,3442.3,3441.5,3.2078]
[1736983792733,3.2078,3441.9,3441.1,3.6915]
[1736983792935,0.58107,3441.7,3441.5,0.5811]
[1736983793140,0.4498,3441.8,3441.6,0.58108]
[1736983793341,0.58107,3441.8,3441.6,0.58108]
[1736983794139,0.4498,3442.1,3441.6,0.58108]
[1736983794437,0.58105,3441.9,3441.7,0.58107]
[1736983794935,0.58106,3441.8,3441.6,0.58108]
[1736983795137,0.4498,3442.1,3441.3,40.8]
[1736983795336,0.58105,3441.9,3441.7,0.58107]
[1736983796838,0.58106,3441.8,3441.6,0.58108]
[1736983797039,0.4498,3442.1,3441.6,0.58108]
[1736983797244,0.58107,3441.8,3441.6,0.58108]
[1736983797640,0.58105,3441.9,3441.7,0.58107]
[1736983797947,0.4498,3442.1,3441.6,2.25696731]
[1736983798146,0.581,3442.2,3442.0,2.83797731]
[1736983798339,3.2078,3442.3,3442.2,0.58099]
[1736983798742,1.3954,3442.7,3442.2,0.58099]
[1736983798945,0.58097,3442.4,3442.2,0.58099]
[1736983799145,0.58098,3442.3,3442.1,0.581]
[1736983799341,1.3954,3442.7,3442.1,0.581]
[1736983799541,0.58098,3442.3,3442.1,0.581]
[1736983799742,1.3954,3442.7,3442.1,0.581]
[1736983799943,1.3954,3442.7,3442.1,0.58101]
[1736983800149,0.58098,3442.3,3442.1,0.58101]
[1736983800355,0.58098,3442.3,3441.9,0.58104]
[1736983800642,3.2078,3442.4,3441.8,40.8]
[1736983800850,1.45244,3442.3,3441.6,0.9012]
[1736983801052,0.58107,3441.7,3441.6,0.9012]
[1736983801240,3.2078,3442.0,3441.6,0.9012]
[1736983801441,3.78883,3442.0,3441.6,3.15816731]
[1736983801641,0.58105,3441.9,3441.7,1.04006]
[1736983801841,0.4425,3441.9,3441.8,0.58106]
[1736983802253,0.58107,3441.7,3441.6,0.9012]
[1736983802544,0.58107,3441.7,3441.6,1.48229]
[1736983802851,0.58107,3441.7,3441.6,0.9012]
[1736983803052,0.4425,3441.9,3441.6,1.48229]
[1736983803343,3.78881,3442.1,3441.6,3.15816731]
[1736983803547,3.2078,3442.1,3441.6,3.15816731]
[1736983803750,0.58104,3442.0,3441.6,3.15816731]
[1736983803952,0.58104,3441.9,3441.8,0.58105]
[1736983804354,0.58106,3441.8,3441.6,1.48228]
[1736983804744,0.58106,3441.8,3441.7,0.58107]
[1736983804944,0.4543,3442.0,3441.7,0.58107]
[1736983805246,0.58105,3441.9,3441.7,0.58107]
[1736983805450,0.58104,3441.9,3441.7,0.58107]
[1736983806149,0.58104,3441.9,3441.6,0.9012]
[1736983806351,0.58104,3441.9,3441.7,0.58106]
[1736983806549,0.58106,3441.8,3441.7,0.58106]
[1736983806747,0.58106,3441.8,3441.6,1.48228]
[1736983806940,0.58106,3441.8,3441.7,0.58107]
[1736983807549,0.58104,3441.9,3441.6,1.48228]
[1736983807745,0.58107,3441.8,3441.6,1.48228]
[1736983807943,0.58107,3441.8,3441.7,0.58107]
[1736983808145,0.4543,3442.0,3441.1,1.45294]
[1736983808146,0.4543,3442.0,3441.1,4.3708]
[1736983808344,0.58112,3441.5,3441.3,0.58113]
[1736983808549,0.5811,3441.6,3441.5,0.5811]
[1736983808852,0.4745,3441.7,3441.2,40.8]
[1736983809045,0.58111,3441.5,3441.4,0.58112]
[1736983809346,0.4745,3441.7,3441.4,0.58112]
[1736983809553,0.4745,3441.7,3441.6,0.58109]
[1736983809747,0.58108,3441.7,3441.6,0.58108]
[1736983809940,0.4543,3442.0,3441.2,40.8]
[1736983810145,0.58107,3441.8,3441.3,2.25696731]
[1736983810345,0.58107,3441.8,3441.7,0.58107]
[1736983810553,0.58108,3441.7,3441.6,0.58108]
[1736983810748,0.5811,3441.6,3441.5,0.5811]
[1736983810949,0.58113,3441.4,3441.3,0.58113]
[1736983811141,0.58112,3441.5,3441.4,0.58112]
[1736983811346,0.4543,3442.0,3441.2,40.8]
[1736983811546,0.4543,3442.0,3441.5,0.58111]
[1736983811749,0.5811,3441.6,3441.5,0.58111]
[1736983812550,0.4543,3442.0,3441.2,40.8]
[1736983812950,0.58111,3441.5,3441.4,0.58112]
[1736983813151,0.4543,3442.0,3441.2,40.8]
[1736983813456,0.58108,3441.7,3441.6,0.58109]
[1736983813752,0.4543,3442.0,3441.5,0.58109]
[1736983813950,0.58109,3441.6,3441.5,0.58109]
[1736983814151,0.4543,3442.0,3441.3,0.58113]
[1736983814353,0.58112,3441.4,3441.3,0.58113]
[1736983814853,0.58113,3441.4,3441.3,0.58113]
[1736983815047,0.58112,3441.5,3441.4,0.58112]
[1736983815556,0.58112,3441.4,3441.3,0.58113]
[1736983815755,1.45261,3441.9,3441.2,40.8]
[1736983815961,0.58113,3441.4,3441.3,0.58113]
[1736983816463,0.58113,3441.4,3441.3,0.58114]
[1736983816660,1.90687,3442.0,3441.2,40.8]
[1736983816954,1.90687,3442.0,3441.0,1.3627]
[1736983816955,0.58117,3441.1,3441.0,1.3627]
[1736983817558,0.4778,3441.5,3440.5,3.2078]
[1736983817853,0.482,3441.0,3440.8,0.58123]
[1736983818256,0.58121,3440.9,3440.8,0.58123]
[1736983818457,0.58122,3440.9,3440.7,0.58124]
[1736983818658,0.58122,3440.9,3440.7,0.58123]
[1736983818956,3.2078,3442.6,3440.8,6.56933462]
[1736983819271,29.31309,3445.5,3442.4,0.58094]
[1736983819272,0.5809,3442.8,3442.4,0.58094]
[1736983819558,2.25696731,3443.4,3442.6,0.58092]
[1736983819559,0.58087,3442.9,3442.6,0.58092]
[1736983819756,0.58087,3443.0,3442.7,0.58089]
[1736983819952,0.58089,3442.8,3442.6,0.58092]
[1736983820257,0.58084,3443.1,3442.5,0.47594982]
[1736983820457,3.2078,3442.8,3442.3,0.8924]
[1736983820758,0.58096,3442.4,3442.3,0.8924]
[1736983821057,0.58096,3442.4,3442.3,0.4501]
[1736983821355,0.58099,3442.3,3442.0,1.04321]
[1736983821559,0.464,3442.3,3442.0,1.04321]
[1736983821958,0.58101,3442.1,3441.8,4.23385]
[1736983822165,0.464,3442.3,3441.8,1.02605]
[1736983822166,0.58102,3442.0,3441.8,1.02605]
[1736983822453,0.58102,3442.1,3441.8,1.02605]
[1736983822854,0.58103,3442.0,3441.8,0.445]
[1736983823054,0.464,3442.3,3441.8,0.445]
[1736983823459,0.58101,3442.1,3441.9,0.58104]
[1736983823858,0.58101,3442.1,3441.8,1.02605]
[1736983824262,0.58101,3442.1,3441.9,0.58104]
[1736983824465,0.464,3442.3,3441.8,0.445]
[1736983824660,0.58104,3441.9,3441.8,0.445]
[1736983825864,0.464,3442.3,3441.8,0.445]
[1736983826065,0.58104,3441.9,3441.8,0.445]
[1736983827264,3.6718,3442.3,3441.8,0.445]
[1736983827465,2.73296731,3442.2,3441.1,1.163]
[1736983827668,0.5811,3441.6,3441.4,0.58112]
[1736983828061,0.58111,3441.5,3441.2,1.01955]
[1736983828261,0.58111,3441.5,3441.3,0.58114]
[1736983828468,0.4732,3441.8,3441.2,0.4384]
[1736983828668,0.4794,3441.7,3441.2,0.4384]
[1736983828965,0.4794,3441.7,3441.3,0.58113]
[1736983829162,0.4794,3441.7,3441.2,41.2384]
[1736983829359,0.58114,3441.4,3441.2,41.81956]
[1736983829663,0.58111,3441.5,3441.3,0.58113]
[1736983830069,0.4794,3441.7,3441.2,41.2384]
[1736983830368,0.4794,3441.7,3441.2,41.81955]
[1736983830369,0.58112,3441.5,3441.2,41.81955]
[1736983830565,0.58113,3441.4,3441.2,1.01955]
[1736983831275,0.4794,3441.7,3441.1,41.7213]
[1736983831276,0.58116,3441.2,3441.1,41.7213]
[1736983831462,0.58116,3441.2,3441.1,40.8]
[1736983831670,0.58117,3441.1,3441.0,3.2078]
[1736983832769,3.2078,3441.5,3440.9,0.4826]
[1736983833073,0.58112,3441.4,3440.7,0.4716]
[1736983833274,0.58123,3440.8,3440.7,0.4716]
[1736983834569,0.58126,3440.6,3440.5,0.4729]
[1736983834776,0.58125,3440.7,3440.5,1.05418]
[1736983835074,0.58125,3440.7,3440.5,0.4729]
[1736983835666,0.58125,3440.7,3440.5,1.05417]
[1736983835869,0.58126,3440.6,3440.5,0.4729]
[1736983836268,1.3507,3441.0,3440.4,3.2078]
[1736983836473,0.58128,3440.5,3440.4,3.2078]
[1736983837466,0.58127,3440.6,3440.4,3.78908]
[1736983837767,1.3507,3441.0,3440.5,0.58128]
[1736983837973,0.58126,3440.6,3440.5,40.8]
[1736983839371,0.58128,3440.5,3440.4,3.2078]
[1736983839876,0.58128,3440.5,3440.3,2.0093]
[1736983839877,0.58129,3440.4,3440.3,42.228]
[1736983840080,0.58129,3440.4,3440.3,40.8]
[1736983840270,0.58132,3440.3,3440.1,0.58134]
[1736983841169,3.2078,3440.7,3440.0,4.113]
[1736983841470,0.58134,3440.1,3440.0,44.913]
[1736983841869,0.58134,3440.1,3439.7,1.0589]
[1736983842178,0.4527,3440.1,3439.7,1.377]
[1736983842476,0.58137,3440.0,3439.8,0.58139]
[1736983842666,0.4527,3440.1,3439.7,1.377]
[1736983843180,0.58139,3439.9,3439.7,1.95841]
[1736983843474,0.58139,3439.9,3439.7,0.58141]
[1736983843671,0.4527,3440.1,3439.5,2.30621453]
[1736983843985,0.58142,3439.7,3439.5,0.58144]
[1736983844480,0.58143,3439.6,3439.5,0.58144]
[1736983844679,0.4527,3440.1,3439.5,0.58144]
[1736983844879,0.58142,3439.7,3439.5,0.58144]
[1736983845082,0.4527,3440.1,3439.5,0.58144]
[1736983845380,0.58142,3439.7,3439.5,0.58145]
[1736983846176,0.4527,3440.1,3439.5,0.58145]
[1736983846376,0.4527,3440.1,3439.6,0.58142]
[1736983846681,0.58143,3439.6,3439.5,0.58144]
[1736983846874,0.58145,3439.5,3439.4,3.87664]
[1736983847579,0.58144,3439.6,3439.5,0.58144]
[1736983847776,0.4527,3440.1,3439.4,3.29518]
[1736983848073,0.58141,3439.7,3439.6,0.58143]
[1736983848272,0.4372,3440.2,3439.5,43.10621453]
[1736983848470,0.58128,3440.5,3440.1,2.30621453]
[1736983848775,0.58127,3440.6,3440.4,0.58128]
[1736983848970,0.8821,3440.7,3440.2,1.3775]
[1736983849177,0.58128,3440.5,3440.4,0.58129]
[1736983849376,0.8821,3440.7,3440.2,1.3775]
[1736983849574,0.5813,3440.4,3440.3,0.58131]
[1736983850084,2.30621453,3440.4,3439.9,3.2078]
[1736983850379,0.58138,3439.9,3439.8,1.3385]
[1736983850779,0.58138,3439.9,3439.8,0.4486]
[1736983851286,0.8821,3440.7,3439.8,10.96261453]
[1736983851481,0.9152,3441.1,3440.6,2.30621453]
[1736983851683,0.58112,3441.5,3441.1,0.58117]
[1736983851882,0.5811,3441.6,3441.2,0.58114]
[1736983852183,2.30621453,3441.5,3440.7,1.3487]
[1736983852382,0.58123,3440.8,3440.7,1.3487]
[1736983852580,0.5812,3441.0,3440.6,0.58125]
[1736983852780,0.4485,3440.9,3440.2,0.4588]
[1736983853078,0.4485,3440.9,3440.6,0.58124]
[1736983853283,1.02972,3440.9,3440.3,0.58131]
[1736983853486,0.4485,3440.9,3440.3,40.8]
[1736983853788,0.58123,3440.8,3440.5,0.58128]
[1736983854084,0.58123,3440.8,3440.3,40.8]
[1736983854282,0.58123,3440.8,3440.6,0.58126]
[1736983854477,1.02972,3440.9,3440.6,0.58126]
[1736983854686,0.4485,3440.9,3440.3,40.8]
[1736983854894,3.2078,3441.0,3440.8,0.58121]
[1736983855187,0.58115,3441.3,3441.0,0.58118]
[1736983855576,3.2078,3441.5,3441.0,0.58118]
[1736983855776,0.58116,3441.2,3440.8,1.3542]
[1736983855984,0.58116,3441.2,3440.9,0.5812]
[1736983856681,5.51401453,3441.5,3440.9,0.58121]
[1736983856889,0.58117,3441.2,3440.9,0.58121]
[1736983857685,0.58117,3441.2,3440.8,1.3542]
[1736983857686,5.51401453,3441.5,3440.8,1.93541]
[1736983857875,0.5812,3441.0,3440.8,1.93541]
[1736983858074,5.51401453,3441.5,3440.9,2.30621453]
[1736983858075,3.2078,3441.5,3440.9,2.30621453]
[1736983858278,3.2078,3441.5,3441.4,0.58112]
[1736983859482,0.58108,3441.7,3441.4,0.58112]
[1736983859783,3.2078,3442.0,3441.5,1.535]
[1736983859784,0.02274094,3441.6,3441.5,1.535]
[1736983861380,0.02274094,3441.6,3441.5,3.84121453]
[1736983861985,0.02274094,3441.6,3441.5,44.64121453]
[1736983862379,0.02274094,3441.6,3441.5,42.335]
[1736983862584,0.02274094,3441.6,3441.5,0.4704]
[1736983862784,0.60383094,3441.6,3441.5,0.4704]
[1736983862983,0.02274094,3441.6,3441.5,0.4704]
[1736983863179,0.02274094,3441.6,3441.3,0.58113]
[1736983863390,0.58111,3441.5,3441.1,0.58117]
[1736983863589,0.02274094,3441.6,3441.2,0.58115]
[1736983863788,0.58114,3441.3,3441.0,1.74918]
[1736983863989,0.58114,3441.3,3441.1,0.58117]
[1736983864188,0.02274094,3441.4,3440.9,1.0607]
[1736983864189,0.58118,3441.1,3440.9,1.0607]
[1736983864394,0.58119,3441.0,3440.8,0.58122]
[1736983864786,0.02274094,3440.9,3440.7,1.74923]
[1736983864982,0.02274094,3440.9,3440.8,2.30621453]
[1736983865183,0.02274094,3440.9,3440.8,6.09524453]
[1736983868290,0.02274094,3440.9,3440.8,3.78903]
[1736983868490,0.02274094,3440.9,3440.4,3.6873]
[1736983868689,0.58123,3440.8,3440.4,4.26858]
[1736983868892,0.95334094,3440.9,3440.4,4.26858]
[1736983868893,0.02274094,3440.6,3440.4,4.26858]
[1736983869093,0.02274094,3440.6,3440.5,0.58128]
[1736983869699,0.02274094,3440.6,3440.5,2.88749453]
[1736983871902,0.60400094,3440.6,3440.4,4.26859]
[1736983872108,0.02274094,3440.6,3440.3,40.8]
[1736983872302,0.60401094,3440.6,3440.4,0.58128]
[1736983872703,0.02274094,3440.6,3440.2,2.75921453]
[1736983872897,0.02274094,3440.4,3440.3,0.5813]
[1736983873200,0.02274094,3440.4,3440.3,41.3813]
[1736983873501,0.58131,3440.3,3440.2,2.30621453]
[1736983873905,0.60405094,3440.3,3440.2,0.58133]
[1736983874200,0.02274094,3440.3,3440.2,0.58133]
[1736983874396,0.02274094,3440.3,3440.1,40.8]
[1736983874598,0.60405094,3440.3,3440.2,0.58133]
[1736983874900,0.60405094,3440.3,3440.1,0.58134]
[1736983875094,0.02274094,3440.3,3440.0,3.2078]
[1736983875294,0.58133,3440.2,3439.8,0.58138]
[1736983875499,0.58136,3440.0,3439.8,0.58139]
[1736983875696,0.5814,3439.8,3439.6,2.30621453]
[1736983875902,0.5814,3439.8,3439.7,0.55866906]
[1736983876295,0.8749,3440.1,3439.5,44.0078]
[1736983876496,0.5814,3439.8,3439.6,0.58142]
[1736983876691,0.58136,3440.0,3439.5,3.78923]
[1736983876894,0.0228146,3439.8,3439.5,3.2078]
[1736983877302,0.58143,3439.6,3439.5,3.2078]
[1736983877909,0.6042446,3439.6,3439.5,3.2078]
[1736983878103,0.6042446,3439.6,3439.5,3.78925]
[1736983878602,0.60698465,3439.6,3439.5,3.78925]
[1736983878898,0.60698465,3439.6,3439.5,3.2078]
[1736983879113,0.58145,3439.5,3439.4,0.08738]
[1736983879504,1.03485,3439.5,3439.4,0.08738]
[1736983879801,1.06588475,3439.5,3439.4,0.08738]
[1736983881704,1.0686248,3439.5,3439.4,0.08738]
[1736983882698,1.07136485,3439.5,3439.4,0.08738]
[1736983883802,1.0741049,3439.5,3439.4,0.08738]
[1736983884206,1.07684495,3439.5,3439.4,0.08738]
[1736983884704,1.079585,3439.5,3439.4,0.08738]
[1736983885604,4.287385,3439.5,3439.4,0.08738]
[1736983885804,0.58156,3438.8,3438.6,3.78938]
[1736983886008,0.58156,3438.9,3438.7,0.58157]
[1736983886206,0.4846,3438.8,3438.7,40.8]
[1736983886408,1.06616,3438.8,3438.6,3.78938]
[1736983886619,0.58158,3438.7,3438.6,3.2078]
[1736983886905,0.626315,3438.7,3438.6,3.2078]
[1736983887811,0.64915797,3438.7,3438.6,3.2078]
[1736983888013,0.06757797,3438.7,3438.1,1.3804]
[1736983888202,0.58163,3438.4,3438.2,40.8]
[1736983888403,0.58163,3438.4,3438.3,0.58165]
[1736983888703,0.64921797,3438.4,3438.2,41.38165]
[1736983888904,0.09042094,3438.3,3438.2,41.38166]
[1736983889504,0.09042094,3438.3,3438.2,43.69179257]
[1736983889710,0.5815,3439.2,3439.0,0.58152]
[1736983889905,0.02284297,3439.1,3439.0,0.58152]
[1736983890707,0.02284297,3439.1,3438.7,0.451]
[1736983890908,2.31013257,3439.0,3438.3,0.4821]
[1736983891117,0.04568594,3438.7,3438.6,0.58158]
[1736983891308,0.62726594,3438.7,3438.6,0.58158]
[1736983892316,0.06852891,3438.7,3438.3,0.9331]
[1736983892513,0.06852891,3438.7,3438.5,0.58161]
[1736983892814,0.65011891,3438.7,3438.5,0.58161]
[1736983893017,0.65011891,3438.7,3438.4,0.58163]
[1736983893207,0.09118471,3438.6,3438.4,0.58163]
[1736983893517,0.67278471,3438.6,3438.5,0.58161]
[1736983893813,0.09118471,3438.6,3438.5,0.58161]
[1736983894209,0.57914051,3438.6,3438.3,0.9331]
[1736983894411,0.57914051,3438.6,3438.3,0.451]
[1736983894612,0.4795,3438.5,3438.4,0.58163]
[1736983895212,0.59334051,3438.5,3438.4,0.58163]
[1736983895410,0.61599631,3438.5,3438.4,0.58163]
[1736983895612,0.13649631,3438.5,3438.4,0.58163]
[1736983896315,0.15524998,3438.5,3438.3,0.451]
[1736983896515,0.15524998,3438.5,3438.4,0.58163]
[1736983898506,0.58164,3438.4,3438.3,0.58164]
[1736983898708,1.50894,3438.4,3438.3,0.58164]
[1736983898911,0.9273,3438.4,3438.1,3.2078]
[1736983899212,0.58166,3438.2,3438.1,3.78948]
[1736983899415,0.73690998,3438.2,3438.1,3.2078]
[1736983899616,0.5817,3438.0,3437.9,41.84621]
[1736983899919,0.15524998,3438.2,3438.1,0.58168]
[1736983900112,0.73690998,3438.2,3438.1,0.58168]
[1736983900311,0.5817,3438.0,3437.9,41.84621]
[1736983900521,0.15524998,3438.0,3437.9,1.04621]
[1736983900715,0.15524998,3438.0,3437.8,0.58172]
[1736983901014,0.58172,3437.9,3437.8,41.38172]
[1736983901215,0.73695998,3438.0,3437.9,0.58172]
[1736983901411,0.15524998,3438.0,3437.9,0.58172]
[1736983905615,0.15524998,3438.0,3437.8,40.8]
[1736983905820,0.58172,3437.9,3437.8,40.8]
[1736983906117,0.58172,3437.9,3437.7,0.4465]
[1736983906118,0.58175,3437.7,3437.6,3.2078]
[1736983906323,0.58181,3437.4,3437.3,0.58181]
[1736983906622,0.73705998,3437.4,3437.3,0.58181]
[1736983907015,0.15524998,3437.4,3437.1,44.4839]
[1736983907220,0.4456,3437.3,3437.1,44.4839]
[1736983907418,0.58183,3437.2,3437.1,45.06574]
[1736983907721,0.15524998,3437.2,3437.1,44.4839]
[1736983907917,0.15524998,3437.2,3437.1,5.99403257]
[1736983908116,2.908,3439.6,3437.1,5.99403257]
[1736983908117,5.51793257,3439.1,3437.1,10.99403257]
[1736983908318,0.8789,3439.0,3438.1,2.31013257]
[1736983908520,3.18903257,3439.0,3438.2,41.2798]
[1736983908821,0.58164,3438.4,3438.2,41.38166]
[1736983909211,3.2078,3438.7,3438.2,40.8]
[1736983909416,0.58163,3438.5,3438.2,41.38166]
[1736983909720,3.2078,3438.7,3437.2,5.51793257]
[1736983909721,2.31013257,3438.3,3437.2,5.51793257]
[1736983909919,0.8789,3438.2,3437.8,0.58173]
[1736983910117,3.2078,3438.7,3437.8,2.31013257]
[1736983910323,0.58161,3438.5,3438.1,0.58167]
[1736983910619,0.58164,3438.4,3438.1,0.58167]
[1736983910818,0.8789,3438.6,3438.2,0.58165]
[1736983911019,0.8789,3438.6,3438.1,0.58167]
[1736983911227,0.8789,3438.6,3437.9,0.4798]
[1736983911423,5.51793257,3438.3,3437.6,3.2078]
[1736983911626,0.58175,3437.7,3437.6,3.2078]
[1736983917728,0.58185,3437.2,3436.9,0.58188]
[1736983917926,2.31013257,3437.4,3436.7,0.4564]
[1736983918233,0.58187,3437.1,3436.8,1.06419]
[1736983918420,0.458,3437.3,3436.8,1.06419]
[1736983918727,0.58187,3437.0,3436.8,1.06419]
[1736983919131,0.458,3437.3,3436.8,1.06419]
[1736983919335,0.58188,3436.9,3436.8,1.06419]
[1736983919728,0.5819,3436.8,3436.7,0.4564]
[1736983921534,0.4467,3437.0,3436.7,0.4564]
[1736983921734,3.6658,3437.3,3437.2,0.58183]
[1736983921933,3.2078,3437.3,3437.2,0.58183]
[1736983922633,3.2078,3437.3,3437.2,41.38183]
[1736983923035,2.89189257,3437.7,3437.4,0.58179]
[1736983923235,0.58177,3437.6,3437.5,0.4443]
[1736983924343,2.31013257,3437.7,3437.5,0.4443]
[1736983924642,0.58177,3437.6,3437.5,0.4443]
[1736983925238,0.58178,3437.5,3437.3,1.03611]
[1736983925534,0.5818,3437.4,3437.3,0.4543]
[1736983925936,0.58179,3437.5,3437.3,1.03611]
[1736983926333,0.58179,3437.5,3437.3,0.4543]
[1736983926533,0.58179,3437.5,3437.4,0.5818]
[1736983927036,2.31013257,3437.6,3437.3,1.03612]
[1736983927341,2.31013257,3437.6,3437.3,0.4543]
[1736983927533,2.89191257,3437.6,3437.4,0.58179]
[1736983928233,2.31013257,3437.6,3437.3,0.4543]
[1736983928442,0.58167,3438.2,3438.0,0.58169]
[1736983928936,0.4449,3438.3,3438.1,0.4714]
[1736983929129,0.58162,3438.5,3438.3,0.58165]
[1736983929334,2.89176257,3438.5,3438.3,0.58165]
[1736983929535,2.31013257,3438.5,3438.2,0.9008]
[1736983929743,0.5816,3438.6,3438.4,0.58162]
[1736983930240,3.6625,3439.0,3438.2,0.9008]
[1736983930443,0.4547,3439.0,3438.9,0.58155]
[1736983930643,1.02762,3439.1,3438.9,0.58155]
[1736983930941,0.4461,3439.1,3438.8,3.2078]
[1736983931137,0.4461,3439.1,3439.0,0.58153]
[1736983931444,0.4461,3439.1,3438.9,40.8]
[1736983931943,1.02761,3439.1,3438.9,41.38154]
[1736983932238,0.4461,3439.1,3438.9,40.8]
[1736983932442,0.4461,3439.1,3439.0,0.58153]
[1736983932741,0.4461,3439.1,3438.9,40.8]
[1736983933134,0.58153,3439.0,3438.9,40.8]
[1736983933443,0.02282891,3439.0,3438.9,41.38155]
[1736983933643,0.02282891,3439.0,3438.9,40.8]
[1736983933844,0.60435891,3439.0,3438.9,40.8]
[1736983934043,0.02282891,3439.0,3438.9,40.8]
[1736983934343,0.02282891,3439.0,3438.8,0.58156]
[1736983934537,0.6214958,3438.9,3438.7,0.58157]
[1736983935034,0.0399458,3438.9,3438.4,3.2078]
[1736983935444,0.0399458,3438.9,3438.8,0.58156]
[1736983935741,0.0399458,3438.7,3438.6,0.5816]
[1736983937339,0.9089,3439.6,3439.5,0.58144]
[1736983937543,0.58134,3440.1,3439.6,0.58142]
[1736983937743,0.58139,3439.9,3439.6,0.58143]
[1736983938048,0.58139,3439.8,3439.7,40.8]
[1736983938238,0.8906,3440.1,3439.7,40.8]
[1736983938746,1.47196,3440.1,3439.9,0.58136]
[1736983938947,0.8906,3440.1,3439.7,40.8]
[1736983939246,0.58137,3440.0,3439.8,0.58139]
[1736983939543,0.58137,3440.0,3439.8,0.58138]
[1736983939950,0.8906,3440.1,3439.7,40.8]
[1736983940343,0.58139,3439.9,3439.7,41.3814]
[1736983940645,0.58139,3439.8,3439.7,40.8]
[1736983940842,2.31013257,3439.9,3439.5,3.2078]
[1736983941147,0.58143,3439.6,3439.5,3.2078]
[1736983941347,2.31013257,3439.9,3439.5,3.2078]
[1736983941647,0.58143,3439.6,3439.5,3.2078]
[1736983942950,0.58144,3439.5,3439.4,0.9437]
[1736983943155,2.31013257,3439.9,3439.4,0.9437]
[1736983943351,0.58142,3439.7,3439.5,0.58144]
[1736983943548,0.58144,3439.6,3439.4,1.52516]
[1736983943745,0.58144,3439.6,3439.4,0.9437]
[1736983944052,0.58141,3439.7,3439.5,0.58144]
[1736983944255,0.58142,3439.7,3439.5,0.58144]
[1736983945246,4.0984,3440.1,3439.5,0.58144]
[1736983945547,0.58142,3439.7,3439.5,0.58144]
[1736983945954,4.0984,3440.1,3439.4,0.9437]
[1736983946154,2.31013257,3439.6,3438.9,44.0078]
[1736983946454,0.58151,3439.1,3438.4,3.6516]
[1736983946653,0.58151,3439.1,3438.9,0.58153]
[1736983946853,0.58151,3439.1,3439.0,41.38153]
[1736983947060,0.9008,3439.5,3439.0,40.8]
[1736983947252,0.58148,3439.3,3439.1,0.5815]
[1736983947453,1.166,3439.8,3439.2,3.2078]
[1736983947759,0.58142,3439.7,3439.5,0.58143]
[1736983947951,3.80751257,3440.0,3439.3,0.58148]
[1736983948259,3.22613257,3440.0,3439.7,0.5814]
[1736983948462,3.22613257,3440.0,3439.2,3.2078]
[1736983948654,0.5814,3439.8,3439.6,0.58141]
[1736983950348,3.22613257,3440.0,3439.6,0.58142]
[1736983950649,3.22613257,3440.0,3439.2,3.2078]
[1736983950958,0.58148,3439.3,3439.2,3.78928]
[1736983951152,2.31013257,3439.7,3439.1,0.9073]
[1736983951355,1.45346,3439.9,3439.1,0.9073]
[1736983951356,0.5815,3439.2,3439.1,0.4708]
[1736983951757,0.58151,3439.1,3439.0,40.8]
[1736983953254,0.9515,3439.3,3439.0,40.8]
[1736983953471,0.9515,3439.3,3439.0,41.38152]
[1736983953472,0.58151,3439.2,3439.0,41.38152]
[1736983953791,0.58151,3439.1,3439.0,41.38152]
[1736983954064,0.58151,3439.2,3439.0,41.38152]